bitfinex/quotes_ETHUSD_20260310
["timestamp","ask_amount","ask_price","bid_price","bid_amount"]
[1773142560678,1.63566424,2066.6,2066.2,4.75832571]
[1773142560982,1.63766424,2066.8,2066.3,1.69142395]
[1773142561180,2.84726443,2066.8,2066.3,1.69142395]
[1773142561880,1.63566424,2066.7,2066.4,1.20983352]
[1773142562215,1.63566424,2066.7,2066.4,1.69142395]
[1773142562421,1.63566424,2066.7,2066.3,2.90127331]
[1773142562914,0.002,2066.4,2066.3,2.90127331]
[1773142563712,1.67062717,2066.4,2066.2,1.858]
[1773142564024,0.002,2066.4,2066.2,3.06790944]
[1773142564185,0.002,2066.4,2066.2,4.63956233]
[1773142567508,0.002,2066.4,2066.3,1.57165289]
[1773142568210,0.002,2066.4,2066.3,2.78154496]
[1773142568578,0.002,2066.4,2066.3,1.20989207]
[1773142569765,0.002,2066.4,2066.3,2.78154496]
[1773142570265,0.002,2066.6,2066.4,1.57165289]
[1773142570445,0.002,2066.8,2066.4,1.57165289]
[1773142570865,0.002,2066.8,2066.6,1.57165289]
[1773142571067,0.002,2066.8,2066.7,3.43265289]
[1773142571730,1.67062717,2067.1,2066.9,1.57165289]
[1773142571731,0.002,2067.1,2066.9,1.57165289]
[1773142572073,0.002,2067.1,2066.8,1.57165289]
[1773142572074,1.67062717,2067.1,2066.8,1.57165289]
[1773142572372,1.67062717,2067.1,2066.9,1.862]
[1773142572670,1.67062717,2067.1,2066.9,1.69719636]
[1773142573875,1.67062717,2067.1,2066.7,1.20961449]
[1773142574082,1.67062717,2067.1,2066.8,1.863]
[1773142574588,1.66862717,2067.0,2066.8,1.863]
[1773142574768,1.66862717,2067.0,2066.8,3.07258482]
[1773142574942,0.002,2067.1,2066.8,4.64423771]
[1773142575885,0.002,2067.1,2066.9,1.57165289]
[1773142576465,0.002,2067.1,2067.0,1.20948234]
[1773142576660,0.002,2067.1,2067.0,1.57165289]
[1773142578084,1.67062717,2067.1,2066.9,1.20950112]
[1773142582078,1.67062717,2067.1,2066.8,2.78122939]
[1773142582378,1.67062717,2067.1,2066.9,1.868]
[1773142583082,1.67062717,2067.1,2066.8,1.57165289]
[1773142583287,1.66862717,2067.0,2066.7,1.20963267]
[1773142583496,1.66862717,2067.0,2066.7,1.869]
[1773142584499,1.66862717,2067.0,2066.7,3.07862792]
[1773142584785,0.002,2067.1,2066.8,1.57165289]
[1773142585578,1.66862717,2067.2,2066.8,1.57165289]
[1773142585756,1.66862717,2067.3,2066.8,1.57165289]
[1773142586294,1.66862717,2067.2,2066.7,1.20962792]
[1773142586468,1.66862717,2067.2,2066.8,1.57165289]
[1773142587556,1.66862717,2067.2,2066.8,2.78122298]
[1773142587758,1.66862717,2067.1,2066.6,0.001]
[1773142587993,1.66862717,2067.1,2066.6,1.21071146]
[1773142588170,1.66862717,2067.1,2066.7,1.57165289]
[1773142589554,1.66862717,2067.1,2066.6,1.21071146]
[1773142590086,1.66862717,2067.0,2066.6,3.08271146]
[1773142592894,1.66862717,2067.0,2066.6,1.21071146]
[1773142593984,1.66041537,2066.9,2066.6,1.21071146]
[1773142594980,1.66041537,2066.8,2066.6,0.001]
[1773142597706,1.66041537,2066.7,2066.4,0.001]
[1773142599186,1.66041537,2066.6,2066.4,0.001]
[1773142600802,1.66041537,2066.6,2066.4,1.21083352]
[1773142602733,1.66041537,2066.8,2066.5,1.63775807]
[1773142602911,0.002,2066.9,2066.5,1.63775807]
[1773142603228,0.002,2066.9,2066.6,2.84747451]
[1773142603746,1.66241537,2066.9,2066.6,2.84747451]
[1773142608642,0.002,2066.9,2066.6,2.84747451]
[1773142609590,0.002,2066.9,2066.7,1.58432572]
[1773142610673,1.67251463,2066.9,2066.6,1.20965913]
[1773142610972,1.67251463,2066.9,2066.5,2.79405419]
[1773142611162,1.67251463,2066.9,2066.5,1.88]
[1773142611672,1.67251463,2066.9,2066.4,2.79511749]
[1773142611975,1.67251463,2066.9,2066.4,0.001]
[1773142612175,1.67251463,2066.9,2066.4,3.09083043]
[1773142612346,1.67251463,2066.9,2066.4,1.881]
[1773142612680,1.67051463,2066.7,2066.4,0.001]
[1773142614772,1.67051463,2066.6,2066.4,0.001]
[1773142614994,1.67051463,2066.6,2066.5,0.001]
[1773142620392,1.67051463,2066.5,2066.4,0.001]
[1773142622182,0.002,2066.7,2066.4,1.58532572]
[1773142622379,0.002,2066.7,2066.4,2.79514814]
[1773142622588,1.67251463,2066.7,2066.4,2.79514814]
[1773142622797,0.002,2066.7,2066.4,2.79514814]
[1773142622980,0.002,2066.7,2066.5,1.58432572]
[1773142624005,0.002,2066.7,2066.4,2.77758996]
[1773142626006,1.67229511,2066.7,2066.4,3.09182242]
[1773142626543,1.67029511,2066.6,2066.2,0.001]
[1773142626683,2.14830956,2066.7,2065.9,1.56776754]
[1773142626684,1.67029511,2066.2,2065.9,1.56776754]
[1773142627005,1.67029511,2066.2,2065.9,0.001]
[1773142628505,1.67029511,2066.2,2066.1,0.001]
[1773142628708,1.67029511,2066.2,2065.9,0.001]
[1773142629107,1.67029511,2066.4,2065.9,1.56776754]
[1773142630123,1.67029511,2066.4,2065.9,0.001]
[1773142630828,1.67029511,2066.3,2065.9,0.001]
[1773142631195,1.67029511,2066.3,2065.9,1.56776754]
[1773142632722,1.67029511,2066.0,2065.7,2.77698822]
[1773142633314,2.88028724,2066.2,2065.8,1.56676754]
[1773142633523,1.67029511,2066.1,2065.7,2.77698822]
[1773142634930,1.67029511,2066.1,2065.8,1.56676754]
[1773142638744,1.67029511,2066.0,2065.7,1.2102366]
[1773142639038,1.67029511,2066.0,2065.7,2.77700414]
[1773142639455,1.67029511,2065.9,2065.6,0.001]
[1773142639663,1.21001409,2066.1,2065.4,1.56676754]
[1773142639664,1.67029511,2065.7,2065.4,1.56676754]
[1773142640954,1.67029511,2065.7,2065.3,0.001]
[1773142640955,1.67029511,2065.5,2065.3,0.001]
[1773142641171,1.67029511,2065.5,2065.1,1.56676754]
[1773142644056,1.67029511,2065.5,2065.1,2.77732841]
[1773142646169,1.21018491,2065.8,2065.2,1.56676754]
[1773142646901,1.67029511,2065.7,2065.2,1.56676754]
[1773142647765,1.67029511,2065.6,2065.0,8.29031152]
[1773142648064,1.67029511,2065.6,2065.1,1.56676754]
[1773142648297,1.21029124,2065.7,2065.3,1.56676754]
[1773142648502,1.67029511,2065.8,2065.3,1.56676754]
[1773142648714,2.88043303,2065.9,2065.3,1.56676754]
[1773142648933,1.67029511,2065.9,2065.3,1.56676754]
[1773142649110,1.67029511,2066.1,2065.3,1.56676754]
[1773142649281,1.67029511,2066.3,2065.5,1.56676754]
[1773142649481,2.88014738,2066.4,2065.7,1.56676754]
[1773142649797,1.67029511,2066.3,2065.7,1.56676754]
[1773142650811,1.20991364,2066.3,2065.9,1.56676754]
[1773142651183,2.88020875,2066.3,2065.9,1.56676754]
[1773142651586,1.67029511,2066.2,2065.9,1.56676754]
[1773142652927,1.67029511,2066.2,2065.9,2.77686845]
[1773142653912,0.002,2066.1,2065.9,2.77686845]
[1773142655711,0.002,2066.1,2065.9,1.56676754]
[1773142656514,1.63605555,2066.1,2065.8,1.2101509]
[1773142656893,1.63605555,2066.1,2065.8,2.85628558]
[1773142657093,0.002,2066.1,2065.9,1.64613468]
[1773142658015,0.002,2066.1,2066.0,1.64613468]
[1773142659122,1.63605555,2066.4,2066.0,1.64613468]
[1773142659296,0.002,2066.4,2066.2,1.64613468]
[1773142661010,0.002,2066.4,2066.0,1.64613468]
[1773142661011,1.63605555,2066.4,2066.0,1.64613468]
[1773142662416,0.002,2066.4,2066.0,1.64613468]
[1773142663420,0.002,2066.4,2066.2,1.64613468]
[1773142665827,0.002,2066.2,2066.1,6.93300919]
[1773142666031,0.002,2066.2,2066.1,8.46349337]
[1773142666526,0.002,2066.4,2066.2,1.53048418]
[1773142668532,0.002,2066.4,2066.2,2.74042964]
[1773142668727,1.61249137,2066.4,2066.1,3.09297014]
[1773142669029,1.61249137,2066.4,2066.0,2.74054083]
[1773142671939,0.002,2066.4,2066.1,1.53048418]
[1773142672406,0.002,2066.4,2066.2,1.53048418]
[1773142672732,0.002,2066.5,2066.2,1.53048418]
[1773142674508,0.002,2066.5,2066.3,1.20989207]
[1773142674707,0.002,2066.5,2066.3,2.74037625]
[1773142675141,0.002,2066.5,2066.3,1.53048418]
[1773142677318,0.002,2066.5,2066.3,2.74037092]
[1773142678538,0.002,2066.5,2066.4,0.001]
[1773142678740,1.61249137,2066.5,2066.4,0.001]
[1773142678921,1.61249137,2066.5,2066.1,4.62646341]
[1773142681341,1.61049137,2066.4,2066.1,2.74146341]
[1773142682042,1.61049137,2066.4,2066.1,1.21097923]
[1773142682241,1.61049137,2066.4,2066.1,1.21100681]
[1773142684321,0.002,2066.5,2066.2,1.52383041]
[1773142685041,1.5862394,2066.5,2066.2,1.52383041]
[1773142685438,1.5862394,2066.5,2066.2,2.73378042]
[1773142687025,1.5862394,2066.5,2066.2,1.52383041]
[1773142687237,1.5862394,2066.5,2066.2,2.73377945]
[1773142689445,1.5862394,2066.5,2066.1,2.73479238]
[1773142690020,1.5842394,2066.4,2066.1,1.21096197]
[1773142690733,1.5842394,2066.4,2066.3,0.001]
[1773142695053,2.79407292,2066.4,2066.3,0.001]
[1773142698828,1.5842394,2066.4,2066.3,0.001]
[1773142700153,2.79407292,2066.4,2066.3,0.001]
[1773142700340,1.5842394,2066.3,2066.0,0.001]
[1773142700663,1.5842394,2066.3,2066.0,1.2110555]
[1773142701560,1.5842394,2066.3,2066.0,0.001]
[1773142702760,2.79414422,2066.3,2066.0,0.001]
[1773142703245,1.5842394,2066.2,2066.0,0.001]
[1773142704458,1.5862394,2066.2,2066.0,0.001]
[1773142705256,2.79620887,2066.2,2066.0,0.001]
[1773142705454,1.5842394,2066.1,2066.0,0.001]
[1773142707345,2.79424859,2066.1,2066.0,0.001]
[1773142707545,1.5842394,2066.1,2066.0,0.001]
[1773142708070,2.79424859,2066.1,2066.0,0.001]
[1773142708259,1.5842394,2066.0,2065.8,0.001]
[1773142710159,1.5862394,2066.2,2065.8,1.52483041]
[1773142711672,1.5862394,2066.2,2065.9,1.21012633]
[1773142713244,1.5862394,2066.2,2065.8,2.73496805]
[1773142713444,0.002,2066.2,2065.9,1.52383041]
[1773142713683,1.5862394,2066.4,2065.9,1.57062786]
[1773142713888,0.002,2066.4,2065.9,1.57062786]
[1773142714384,1.49097911,2066.4,2065.9,1.57062786]
[1773142715805,1.49097911,2066.4,2066.0,2.78069562]
[1773142715957,1.49097911,2066.4,2066.0,1.21006776]
[1773142716157,1.49097911,2066.4,2066.1,1.57062786]
[1773142716688,0.002,2066.4,2066.1,1.57062786]
[1773142717487,0.002,2066.4,2066.1,1.57162786]
[1773142717862,0.002,2066.2,2066.1,1.57162786]
[1773142718186,0.002,2066.2,2066.1,2.78163705]
[1773142722873,0.002,2066.2,2066.1,1.57162786]
[1773142723183,0.002,2066.2,2066.1,2.78163705]
[1773142725876,0.002,2066.4,2066.2,1.47993597]
[1773142727792,0.002,2066.4,2066.2,2.68984867]
[1773142731936,1.48732259,2066.4,2066.1,2.69094516]
[1773142733230,0.002,2066.4,2066.1,2.69094516]
[1773142733438,0.002,2066.4,2066.2,1.47993597]
[1773142734220,0.002,2066.4,2066.2,2.6898468]
[1773142741448,0.002,2066.4,2066.2,1.47993597]
[1773142741648,1.48732259,2066.4,2066.1,1.21097174]
[1773142741826,0.002,2066.2,2066.1,3.10497174]
[1773142742361,1.48732259,2066.2,2066.1,0.001]
[1773142742652,0.002,2066.2,2066.1,0.001]
[1773142742850,0.002,2066.2,2066.1,1.21100919]
[1773142743355,0.002,2066.2,2066.1,2.69094516]
[1773142743554,0.002,2066.4,2066.1,2.69094516]
[1773142744455,1.54203021,2066.4,2066.1,2.69094516]
[1773142745452,1.54203021,2066.4,2066.1,4.58694516]
[1773142752542,1.54203021,2066.4,2066.1,1.21100919]
[1773142753363,1.54203021,2066.4,2066.3,0.001]
[1773142760248,0.002,2066.4,2066.3,0.001]
[1773142762361,1.54203021,2066.4,2066.1,0.001]
[1773142762562,1.54003021,2066.3,2066.1,0.001]
[1773142764441,1.2099303,2066.3,2066.1,0.001]
[1773142764646,2.74996051,2066.3,2066.1,0.001]
[1773142765348,1.54003021,2066.2,2066.1,0.001]
[1773142766674,0.002,2066.2,2066.1,0.001]
[1773142767378,1.54203021,2066.2,2066.1,0.001]
[1773142781063,1.57983236,2066.1,2065.9,0.001]
[1773142782289,2.78985846,2066.1,2065.9,0.001]
[1773142783393,1.57983236,2066.1,2065.9,0.001]
[1773142783588,2.78984966,2066.1,2065.9,0.001]
[1773142784192,1.57983236,2066.0,2065.7,0.001]
[1773142784568,2.78984966,2066.1,2065.7,1.52078354]
[1773142784764,0.002,2066.2,2065.8,1.51978354]
[1773142785184,1.21195736,2066.2,2065.8,1.51978354]
[1773142785796,0.002,2066.2,2065.9,1.51978354]
[1773142786494,1.48557211,2066.2,2065.8,1.49848732]
[1773142790896,0.002,2066.2,2066.0,1.49848732]
[1773142793566,0.002,2066.1,2065.8,1.49848732]
[1773142793971,0.002,2066.1,2066.0,0.001]
[1773142795586,1.48557211,2066.3,2066.1,1.49848732]
[1773142795587,0.002,2066.3,2066.1,1.49848732]
[1773142795791,0.002,2066.5,2066.1,1.49848732]
[1773142797003,1.21177514,2066.5,2066.1,1.49848732]
[1773142797181,2.69534725,2066.5,2066.1,1.49848732]
[1773142797584,2.69534725,2066.5,2066.1,2.70848611]
[1773142797776,1.48557211,2066.5,2066.2,1.49848732]
[1773142799511,1.48357211,2066.4,2066.1,1.49848732]
[1773142800088,2.69341653,2066.4,2066.1,1.49848732]
[1773142800468,1.48357211,2066.3,2066.0,0.001]
[1773142801503,1.48357211,2066.3,2066.0,1.49948732]
[1773142802070,1.48357211,2066.3,2066.0,2.70954813]
[1773142802494,2.69534856,2066.5,2066.1,1.49848732]
[1773142804290,1.21177645,2066.5,2066.1,1.49848732]
[1773142804603,1.41985059,2066.4,2066.1,1.49848732]
[1773142806404,2.62969986,2066.4,2066.1,1.49848732]
[1773142806989,1.41985059,2066.3,2066.0,1.53922277]
[1773142807890,1.42185059,2066.3,2066.0,0.001]
[1773142808490,2.63176469,2066.3,2066.0,0.001]
[1773142809810,1.42185059,2066.3,2066.0,0.001]
[1773142810313,2.63174562,2066.3,2066.0,0.001]
[1773142810690,1.41985059,2066.2,2065.8,0.001]
[1773142810889,1.41985059,2065.9,2065.8,0.001]
[1773142811088,1.41985059,2066.1,2065.8,0.001]
[1773142811288,1.41985059,2066.2,2065.8,1.53922277]
[1773142811612,1.41985059,2066.2,2065.8,2.74939564]
[1773142811815,1.41985059,2066.2,2065.8,1.53922277]
[1773142812105,1.41985059,2066.2,2065.9,1.53822277]
[1773142812678,1.41985059,2066.2,2065.9,2.74833772]
[1773142812875,0.002,2066.3,2066.0,1.53822277]
[1773142815031,1.42185059,2066.3,2066.0,1.53822277]
[1773142815225,1.42185059,2066.3,2065.9,1.21011495]
[1773142815429,1.42185059,2066.3,2065.8,1.53922277]
[1773142815430,1.41985059,2066.2,2065.8,1.53922277]
[1773142816416,1.41985059,2066.2,2065.8,2.74940753]
[1773142816729,1.41985059,2065.8,2065.6,0.001]
[1773142817128,2.63004636,2065.8,2065.6,0.001]
[1773142817600,1.41985059,2065.8,2065.6,0.001]
[1773142818605,1.21015662,2065.9,2065.6,0.001]
[1773142818805,2.62996489,2066.0,2065.6,1.53922277]
[1773142820838,1.41985059,2065.9,2065.6,0.001]
[1773142822544,1.41985059,2065.9,2065.8,0.001]
[1773142823642,2.62998867,2065.9,2065.6,0.001]
[1773142824942,1.41985059,2065.8,2065.6,0.001]
[1773142825843,1.41985059,2065.7,2065.5,0.001]
[1773142829228,2.63005294,2065.8,2065.5,0.001]
[1773142834542,2.63005294,2065.8,2065.5,1.51630496]
[1773142834841,2.63005294,2065.8,2065.7,0.001]
[1773142835419,2.66449998,2066.0,2065.7,1.51630496]
[1773142835625,1.45439941,2066.1,2065.7,1.51630496]
[1773142835824,0.002,2065.8,2065.7,1.51630496]
[1773142838460,0.002,2065.8,2065.7,0.001]
[1773142839258,1.45639941,2065.8,2065.7,0.001]
[1773142842859,2.66658432,2065.8,2065.7,0.001]
[1773142844055,1.45439941,2065.7,2065.3,1.51630496]
[1773142844349,1.45439941,2065.5,2065.0,1.51630496]
[1773142844550,1.45439941,2065.4,2065.0,1.51630496]
[1773142844935,1.21047789,2065.3,2065.0,1.51630496]
[1773142845451,2.6648773,2065.3,2065.0,1.51630496]
[1773142846754,1.45439941,2065.3,2065.0,1.51630496]
[1773142847342,2.66488271,2065.3,2065.0,1.51630496]
[1773142848654,2.66488271,2065.3,2065.2,0.001]
[1773142848855,2.66488271,2065.3,2065.0,1.51630496]
[1773142849548,1.44187427,2065.2,2065.0,0.001]
[1773142851860,2.65244027,2065.2,2065.0,0.001]
[1773142853656,2.6523965,2065.3,2065.0,0.001]
[1773142853865,1.21052223,2065.3,2065.1,1.54714037]
[1773142854362,2.6523965,2065.3,2065.0,0.001]
[1773142855632,1.21052223,2065.3,2065.0,1.54814037]
[1773142855959,6.28368402,2065.4,2065.0,1.54814037]
[1773142856330,1.44187427,2065.3,2065.0,1.54814037]
[1773142858269,2.65237236,2065.3,2065.0,1.54814037]
[1773142860234,2.65237236,2065.3,2065.2,0.0011]
[1773142860564,2.65237236,2065.3,2065.0,1.54814037]
[1773142860565,0.001,2065.1,2065.0,1.54814037]
[1773142863261,0.001,2065.1,2065.0,0.001]
[1773142864967,0.001,2065.1,2065.0,1.41934524]
[1773142866547,0.001,2065.1,2065.0,0.001]
[1773142867260,0.001,2065.1,2064.9,1.39934524]
[1773142869164,1.49307183,2065.1,2064.8,0.001]
[1773142869466,2.43107127,2065.1,2064.8,0.001]
[1773142869764,1.49207183,2065.0,2064.8,0.001]
[1773142869971,0.001,2065.1,2064.5,4.84467586]
[1773142869972,1.49207183,2064.8,2064.5,1.41934524]
[1773142870269,1.49207183,2064.6,2064.4,0.001]
[1773142871069,1.49207183,2064.7,2064.4,0.001]
[1773142871267,1.49207183,2064.7,2064.4,1.41934524]
[1773142872856,1.49207183,2064.7,2064.6,0.001]
[1773142873056,1.49207183,2064.7,2064.4,1.41934524]
[1773142873245,2.7029499,2064.7,2064.4,1.41934524]
[1773142875370,1.49207183,2064.6,2064.4,0.001]
[1773142875777,1.21270168,2065.0,2064.6,1.41834524]
[1773142876160,2.70477351,2065.0,2064.6,1.41834524]
[1773142877451,1.49207183,2064.9,2064.6,1.41834524]
[1773142877841,1.21077101,2064.8,2064.6,1.41834524]
[1773142878041,1.21269987,2065.0,2064.6,1.41834524]
[1773142879448,0.001,2065.1,2064.9,1.41834524]
[1773142880386,0.001,2065.1,2065.0,1.41834524]
[1773142883489,0.002,2065.5,2065.1,1.41834524]
[1773142883667,0.002,2065.5,2065.2,1.41834524]
[1773142884570,0.002,2065.5,2065.4,1.41834524]
[1773142890210,0.002,2065.5,2065.4,2.62876452]
[1773142894113,1.53124046,2065.5,2065.2,2.79863183]
[1773142894298,0.002,2065.5,2065.2,2.79863183]
[1773142894502,0.002,2065.5,2065.3,1.58810073]
[1773142895486,1.53124046,2065.5,2065.0,1.58810073]
[1773142897217,2.74161956,2065.5,2065.1,1.58810073]
[1773142899217,1.52924046,2065.4,2065.1,1.58810073]
[1773142899404,1.52924046,2065.4,2065.2,0.001]
[1773142899811,0.002,2065.3,2065.2,0.001]
[1773142904414,0.002,2065.5,2065.3,1.58810073]
[1773142905496,0.002,2065.5,2065.4,2.79852001]
[1773142907832,1.53124046,2065.8,2065.5,1.48770547]
[1773142908020,1.49432149,2066.2,2065.4,2.14944447]
[1773142908211,1.49432149,2066.2,2065.7,1.48770547]
[1773142909630,1.49432149,2066.2,2065.8,2.69789038]
[1773142910138,1.49632149,2066.1,2065.8,1.48770547]
[1773142910920,0.002,2066.1,2065.8,1.48770547]
[1773142912009,0.002,2066.1,2065.8,2.69787251]
[1773142912437,1.49632149,2066.1,2065.8,2.69787251]
[1773142912939,0.002,2066.1,2065.9,1.48770547]
[1773142915339,1.49632149,2066.1,2065.5,1.48770547]
[1773142915549,1.49632149,2066.1,2065.5,2.69806615]
[1773142915842,1.49432149,2065.8,2065.4,0.001]
[1773142917545,1.49432149,2065.7,2065.4,0.001]
[1773142918636,1.49432149,2065.7,2065.4,1.48870547]
[1773142919839,1.49432149,2065.7,2065.4,2.69907137]
[1773142920846,1.49432149,2065.7,2065.4,1.48870547]
[1773142921146,2.70460481,2065.7,2065.4,0.001]
[1773142922551,1.49432149,2065.6,2065.4,0.001]
[1773142926552,1.49632149,2065.6,2065.4,0.001]
[1773142928159,2.70662476,2065.6,2065.4,0.001]
[1773142928457,1.21041928,2065.4,2065.2,0.001]
[1773142928669,1.48366171,2065.3,2065.1,0.001]
[1773142929447,1.48366171,2065.4,2065.1,0.001]
[1773142931558,1.48366171,2065.2,2065.1,0.001]
[1773142933960,2.69419821,2065.2,2065.1,0.001]
[1773142934158,2.69419821,2065.2,2065.0,0.001]
[1773142934159,1.48366171,2065.1,2065.0,0.001]
[1773142934843,1.48366171,2065.2,2065.0,0.001]
[1773142937164,2.69420463,2065.2,2065.0,0.001]
[1773142938845,2.69420463,2065.2,2064.8,0.0011]
[1773142938846,1.48366171,2065.1,2064.8,0.0011]
[1773142939055,1.48366171,2065.0,2064.8,0.0011]
[1773142939450,1.48366171,2065.2,2064.8,1.5679575]
[1773142939657,1.48366171,2065.4,2064.9,1.5668575]
[1773142939861,1.48366171,2065.3,2064.9,1.5668575]
[1773142941776,2.69416414,2065.3,2064.9,2.77756912]
[1773142942075,2.69416414,2065.3,2064.9,1.5668575]
[1773142942473,2.69416414,2065.3,2064.9,2.77756862]
[1773142942769,2.69416414,2065.3,2064.9,1.5668575]
[1773142943144,1.48366171,2065.2,2064.9,1.5668575]
[1773142943543,1.48366171,2065.2,2064.9,2.77752397]
[1773142944074,2.69420447,2065.2,2064.9,1.5668575]
[1773142944473,1.48366171,2065.2,2064.9,1.5668575]
[1773142944658,2.69424187,2065.2,2064.9,1.5668575]
[1773142946049,1.48366171,2065.1,2064.8,1.5679575]
[1773142946557,1.48366171,2065.1,2064.8,2.79055525]
[1773142946756,1.48366171,2065.1,2064.8,1.57978942]
[1773142946955,1.48366171,2065.1,2064.8,2.79054516]
[1773142947767,1.48366171,2065.0,2064.7,0.001]
[1773142947971,2.69433835,2065.0,2064.7,0.001]
[1773142950576,1.48366171,2065.0,2064.7,1.5678575]
[1773142950768,2.69428489,2065.1,2064.7,1.5678575]
[1773142952182,2.69428489,2065.1,2064.9,0.0011]
[1773142952685,1.48466171,2065.0,2064.7,0.001]
[1773142954386,1.51359351,2064.9,2064.7,0.001]
[1773142956678,1.51459351,2065.0,2064.7,1.60131779]
[1773142956883,2.72525004,2065.0,2064.7,1.60131779]
[1773142957082,1.51359351,2064.9,2064.7,0.001]
[1773142961884,1.51359351,2064.9,2064.4,0.001]
[1773142961885,1.51359351,2064.8,2064.4,0.001]
[1773142962064,1.51359351,2064.6,2064.4,0.001]
[1773142964402,2.72448342,2064.6,2064.4,0.001]
[1773142965486,1.51359351,2064.6,2064.4,0.001]
[1773142966068,1.51359351,2064.6,2064.3,1.60131779]
[1773142966069,2.74688744,2064.7,2064.3,1.63372473]
[1773142966262,0.001,2064.8,2064.5,1.63372473]
[1773142966594,0.001,2064.8,2064.7,1.63372473]
[1773142968795,0.001,2064.8,2064.3,4.84409757]
[1773142968964,1.53700044,2064.8,2064.4,1.63372473]
[1773142970588,1.48756476,2064.7,2064.4,1.63372473]
[1773142971699,1.48756476,2064.7,2064.2,4.84438085]
[1773142971700,1.48756476,2064.7,2064.2,1.63372473]
[1773142972800,1.2108883,2064.6,2064.2,1.63372473]
[1773142973003,2.69845306,2064.6,2064.2,1.63372473]
[1773142973204,1.48756476,2064.5,2064.2,1.63372473]
[1773142973803,1.2108883,2064.6,2064.2,2.85828989]
[1773142973978,1.2108883,2064.6,2064.2,1.64717023]
[1773142973979,2.69845306,2064.6,2064.2,1.64717023]
[1773142974180,2.74688874,2064.6,2064.2,1.64717023]
[1773142974706,2.74688874,2064.6,2064.2,1.63372473]
[1773142976407,1.48756476,2064.5,2064.4,0.0011]
[1773142977706,2.69851172,2064.5,2064.4,0.0011]
[1773142978112,1.48756476,2064.4,2064.1,0.001]
[1773142979111,1.48756476,2064.4,2064.1,1.63472473]
[1773142979410,1.48756476,2064.4,2064.1,2.84590306]
[1773142980412,1.48756476,2064.5,2064.1,1.63472473]
[1773142981279,2.19883875,2064.6,2063.9,1.63482473]
[1773142981280,1.48756476,2064.3,2063.9,1.63482473]
[1773142981604,1.48756476,2064.3,2063.9,0.0011]
[1773142982306,1.21112295,2064.2,2063.9,0.0011]
[1773142982489,1.48756476,2064.1,2063.9,0.0011]
[1773142982690,1.48756476,2063.9,2063.4,1.63372473]
[1773142984510,1.53038387,2063.8,2063.3,1.49388639]
[1773142985578,1.53038387,2063.7,2063.3,1.49388639]
[1773142987024,2.74181284,2063.7,2063.3,2.70550614]
[1773142987196,2.74181284,2063.7,2063.3,1.49388639]
[1773142987517,1.53038387,2063.6,2063.2,1.21167525]
[1773142987712,1.53038387,2063.5,2063.1,1.49388639]
[1773142988912,2.74204842,2063.3,2063.0,1.36597129]
[1773142989118,1.53038387,2063.2,2062.8,2.57960168]
[1773142989412,1.53038387,2063.2,2063.0,0.0011]
[1773142989918,1.53038387,2063.1,2062.5,1.36770454]
[1773142990119,1.53038387,2063.1,2062.4,1.36942245]
[1773142990120,1.53038387,2062.9,2062.4,1.36942245]
[1773142990296,2.468854,2063.1,2062.6,1.36942245]
[1773142990613,1.53038387,2063.0,2062.6,1.36942245]
[1773142991109,2.74221801,2063.0,2062.6,1.36942245]
[1773142991888,1.53038387,2062.8,2062.5,1.21208849]
[1773142994219,1.53038387,2062.8,2062.5,2.58688183]
[1773142994811,1.53038387,2062.8,2062.5,1.37479334]
[1773142995021,1.53038387,2063.2,2062.5,1.37479334]
[1773142995302,1.53038387,2063.1,2062.5,1.37479334]
[1773142995722,1.53038387,2063.0,2062.6,2.58805109]
[1773142996688,1.53038387,2063.0,2062.6,1.37598865]
[1773142996888,2.468854,2063.0,2062.5,1.21207271]
[1773142997126,1.53038387,2062.9,2062.5,1.21207271]
[1773142997524,1.53038387,2062.9,2062.5,2.59039969]
[1773142998210,1.53038387,2062.8,2062.5,1.37832698]
[1773142998410,1.53038387,2062.8,2062.5,2.5904318]
[1773142998989,1.53038387,2062.8,2062.5,1.21210482]
[1773143000115,1.57881955,2063.0,2062.6,1.38173954]
[1773143000414,2.79065279,2063.0,2062.6,1.38173954]
[1773143000614,1.53038387,2062.9,2062.7,0.0011]
[1773143002602,0.04843568,2063.0,2062.7,1.38504425]
[1773143002804,1.53038387,2062.9,2062.7,0.0011]
[1773143005623,1.53038387,2062.8,2062.7,0.0011]
[1773143007708,1.2603089,2063.0,2062.7,0.0011]
[1773143007709,1.53038387,2063.0,2062.7,0.0011]
[1773143007918,1.53038387,2063.4,2062.8,1.38924314]
[1773143008107,1.57881955,2063.3,2062.8,1.38924314]
[1773143008529,1.53038387,2063.2,2062.7,0.0011]
[1773143008727,1.53038387,2063.2,2062.7,1.39136565]
[1773143009514,1.53038387,2063.1,2062.8,1.21194492]
[1773143010027,1.57881955,2063.3,2062.9,1.39128079]
[1773143010526,2.79048593,2063.3,2062.9,1.39128079]
[1773143010826,1.53038387,2063.2,2062.9,1.39128079]
[1773143012627,1.53038387,2063.2,2062.9,2.60316561]
[1773143013220,1.53038387,2063.2,2062.9,1.39128079]
[1773143013415,1.57881955,2063.2,2062.9,1.39128079]
[1773143013620,2.470906,2063.1,2062.5,0.0011]
[1773143013822,1.26015689,2063.2,2062.4,1.39618236]
[1773143013823,1.53009172,2062.8,2062.4,1.39618236]
[1773143014332,1.53009172,2062.8,2062.7,0.0011]
[1773143014629,1.53009172,2062.8,2062.4,1.21214446]
[1773143014630,1.53009172,2062.7,2062.4,1.21214446]
[1773143014824,1.53009172,2062.7,2062.5,0.0011]
[1773143018236,2.74209634,2062.7,2062.5,0.0011]
[1773143018410,1.53009172,2062.7,2062.5,0.0011]
[1773143020435,0.04843568,2062.9,2062.6,1.48475682]
[1773143020613,0.001,2063.0,2062.6,1.48585682]
[1773143021431,0.001,2063.0,2062.7,1.48401923]
[1773143021813,1.53009172,2062.9,2062.5,0.0011]
[1773143022240,1.5785274,2062.9,2062.5,0.0011]
[1773143022821,1.5785274,2062.9,2062.5,0.0022]
[1773143023018,1.53009172,2062.7,2062.5,0.0022]
[1773143023610,1.53009172,2062.6,2062.3,1.48328939]
[1773143023812,1.53009172,2062.6,2062.2,1.21334837]
[1773143024013,1.53009172,2062.6,2062.2,2.69515037]
[1773143024213,1.53009172,2062.6,2061.7,0.94081428]
[1773143024214,1.53009172,2062.6,2061.6,1.21265036]